lending/lending_fUSD_20250424
["ID","MTS","AMOUNT","RATE_DAILY","PERIOD"]
[358894175,1745532631935,-8818.68,0.0002211,2]
[358894176,1745532631945,-1535.99,0.0002211,2]
[358894178,1745532631954,-434.64,0.0002211,2]
[358894180,1745532631968,-150.99,0.0002211,2]
[358894182,1745532631977,-499.99,0.0002211,2]
[358894184,1745532631986,-151.0,0.000225,7]
[358894186,1745532631996,-151.0,0.000225,7]
[358894188,1745532632006,-151.0,0.000225,7]
[358894190,1745532632016,-23900.0,0.00022565,2]
[358894192,1745532632026,-10505.67,0.0002264,2]
[358894194,1745532632036,-200.0,0.0002266,2]
[358894196,1745532632047,-401.64372359,0.00022725,2]
[358894198,1745532632057,-158.49607078,0.00022725,2]
[358894200,1745532632066,-400.0,0.00023,2]
[358894202,1745532632076,-163.03,0.00023121,2]
[358894204,1745532632086,-158.34,0.0002323,2]
[358894206,1745532632095,-500.0,0.00023277,2]
[358894208,1745532632105,-196.62,0.0002344,2]
[358894210,1745532632115,-1709.02,0.00023519,2]
[358894212,1745532632125,-373.87,0.00023522,2]
[358894214,1745532632135,-207.4,0.00023551,2]
[358894216,1745532632144,-178.39,0.00023575,2]
[358894218,1745532632153,-1526.77,0.00023761,2]
[358894220,1745532632163,-1000.0,0.00023829,2]
[358894222,1745532632172,-593.28,0.00023836,2]
[358894224,1745532632182,-867.29,0.00023846,2]
[358894226,1745532632191,-27983.64,0.00023853,2]
[358894228,1745532632200,-160.97646452,0.00023853,2]
[358894230,1745532632210,-2814.8303,0.00024588,2]
[358894232,1745532632220,-615.42,0.00024658,2]
[358894234,1745532632231,-11457.3416555,0.00024688,2]
[358894236,1745532632243,-8429.9588445,0.00024688,2]
[358894238,1745532632254,-5756.82015671,0.00024688,2]
[358894241,1745532632269,-1633.63064541,0.00024688,2]
[358894243,1745532632279,-500.0,0.00024773,2]
[358894245,1745532632289,-180.11777588,0.0002478,2]
[358894247,1745532632299,-151.0,0.00024788,7]
[358894249,1745532632309,-151.0,0.00024788,7]
[358894251,1745532632320,-151.0,0.00024788,7]
[358894253,1745532632331,-45012.4890722,0.00024788,2]
[358894255,1745532632341,-3406.38149658,0.00024788,2]
[358894258,1745532632352,-9131.20771,0.00024788,2]
[358894260,1745532632363,-5977.29074792,0.00024788,2]
[358894262,1745532632373,-1405.08597708,0.00024788,2]
[358894264,1745532632384,-82.91855552,0.00024788,2]
[358894266,1745532632394,-3479.83883147,0.0002479,2]
[358894268,1745532632403,-280.9988409,0.00024798,2]
[358894270,1745532632413,-2283.47177211,0.00024798,2]
[358894272,1745532632425,-3506.33685849,0.00024798,2]
[358894274,1745532632436,-177.23029129,0.00024799,2]
[358894276,1745532632446,-151.0,0.00024799,2]
[358894278,1745532632457,-151.0,0.000248,7]
[358894280,1745532632467,-151.0,0.000248,7]
[358894282,1745532632478,-151.0,0.000248,7]
[358894284,1745532632489,-151.0,0.000248,7]
[358894286,1745532632499,-151.0,0.000248,7]
[358894288,1745532632511,-151.0,0.000248,7]
[358894290,1745532632521,-291.723992,0.000248,7]
[358894292,1745532632532,-200.0,0.000248,2]
[358894294,1745532632543,-156.644564,0.000248,7]
[358894296,1745532632554,-156.644564,0.000248,7]
[358894298,1745532632566,-149.91973022,0.000248,7]
[358894300,1745532632583,-50.58258278,0.000248,7]
[358894302,1745532632594,-151.0,0.000248,7]
[358894304,1745532632605,-151.0,0.000248,7]
[358894306,1745532632616,-151.0,0.000248,7]
[358894308,1745532632626,-716.909453,0.000248,7]
[358894310,1745532632636,-516.10199638,0.000248,7]
[358894787,1745532637695,-200.80745662,0.000248,7]
[358894789,1745532637704,-159.900956,0.000248,7]
[358894791,1745532637715,-159.900956,0.000248,7]
[358894793,1745532637724,-151.0,0.000248,7]
[358894795,1745532637733,-151.0,0.000248,7]
[358894797,1745532637742,-151.0,0.000248,7]
[358894799,1745532637752,-528.684048,0.000248,2]
[358894801,1745532637761,-528.684048,0.000248,2]
[358894803,1745532637771,-15.51292577,0.000248,7]
[358894806,1745532637782,-345.91003323,0.000248,7]
[358894808,1745532637791,-361.422959,0.000248,7]
[358894810,1745532637801,-84.67416317,0.000248,7]
[358894812,1745532637813,-313.03402983,0.000248,7]
[358894814,1745532637821,-47.88177116,0.000248,7]
[358894816,1745532637834,-131.64847084,0.000248,7]
[358894818,1745532637843,-179.530242,0.000248,7]
[358894820,1745532637853,-151.0,0.000248,7]
[358894822,1745532637863,-397.708193,0.000248,7]
[358894824,1745532637872,-392.342569,0.000248,7]
[358894826,1745532637882,-215.18800365,0.000248,7]
[358894828,1745532637894,-165.11437535,0.000248,7]
[358894829,1745532637903,-380.302379,0.000248,7]
[358894831,1745532637913,-392.342569,0.000248,7]
[358894833,1745532637923,-151.0,0.000248,7]
[358894835,1745532637933,-151.0,0.000248,7]
[358894837,1745532637943,-151.0,0.000248,7]
[358894838,1745532637953,-114.43707712,0.000248,7]
[358894841,1745532637971,-1409.91926888,0.000248,7]
[358894843,1745532637981,-151.0,0.000248,7]
[358894845,1745532637990,-151.0,0.000248,7]
[358894847,1745532637999,-151.0,0.000248,7]
[358894848,1745532638010,-151.0,0.000248,7]
[358894850,1745532638020,-198.84563,0.000248,34]
[358894852,1745532638029,-248.499628,0.000248,7]
[358894854,1745532638039,-248.499628,0.000248,7]
[358894856,1745532638049,-153.787629,0.00024815,7]
[358894858,1745532638059,-151.0,0.00024815,7]
[358894860,1745532638068,-151.0,0.00024826,7]
[358894862,1745532638077,-397.708193,0.00024826,7]
[358894864,1745532638086,-151.0,0.00024826,7]
[358894866,1745532638096,-397.708193,0.00024826,7]
[358894868,1745532638105,-151.0,0.00024826,7]
[358894870,1745532638115,-151.0,0.00024826,7]
[358894872,1745532638124,-151.0,0.00024826,7]
[358894874,1745532638133,-151.0,0.00024826,7]
[358894876,1745532638143,-151.0,0.00024826,7]
[358894877,1745532638153,-151.0,0.00024826,7]
[358894880,1745532638163,-151.0,0.00024826,7]
[358894881,1745532638172,-198.164087,0.00024826,7]
[358894883,1745532638181,-198.164087,0.00024826,7]
[358894885,1745532638192,-151.0,0.00024826,7]
[358894888,1745532638202,-281.406446,0.00024826,7]
[358894889,1745532638212,-151.0,0.00024826,7]
[358894892,1745532638221,-281.406446,0.00024826,7]
[358894893,1745532638231,-201.154027,0.00024826,7]
[358894895,1745532638240,-201.154027,0.00024826,7]
[358894897,1745532638249,-256.137207,0.00024826,7]
[358894899,1745532638259,-256.137207,0.00024826,7]
[358894901,1745532638269,-151.0,0.00024836,7]
[358894903,1745532638279,-151.0,0.00024836,7]
[358894905,1745532638288,-151.0,0.00024836,7]
[358894907,1745532638298,-151.0,0.00024836,7]
[358894909,1745532638308,-151.0,0.00024836,7]
[358894911,1745532638318,-151.0,0.00024836,7]
[358894913,1745532638328,-156.644564,0.00024836,7]
[358894915,1745532638338,-156.644564,0.00024836,7]
[358894917,1745532638348,-151.0,0.00024836,7]
[358894919,1745532638358,-151.0,0.00024836,7]
[358894921,1745532638368,-151.0,0.00024836,7]
[358894923,1745532638377,-716.909453,0.00024836,7]
[358894925,1745532638387,-716.909453,0.00024836,7]
[358894927,1745532638397,-151.0,0.00024836,7]
[358894929,1745532638406,-159.900956,0.00024836,7]
[358894931,1745532638416,-159.900956,0.00024836,7]
[358894933,1745532638426,-910.349218,0.00024836,7]
[358894935,1745532638436,-151.0,0.00024836,7]
[358894937,1745532638445,-224.058304,0.00024836,7]
[358894938,1745532638454,-151.0,0.00024836,7]
[358894940,1745532638465,-224.058304,0.00024836,7]
[358894942,1745532638475,-249.013375,0.00024836,7]
[358894944,1745532638485,-249.013375,0.00024836,7]
[358894946,1745532638495,-151.0,0.00024846,7]
[358894948,1745532638506,-245.253898,0.00024846,7]
[358894950,1745532638516,-151.0,0.00024846,7]
[358894951,1745532638526,-151.0,0.00024846,7]
[358894953,1745532638536,-151.0,0.00024846,7]
[358894956,1745532638547,-151.0,0.00024846,7]
[358894957,1745532638557,-226.888529,0.00024846,7]
[358894959,1745532638566,-226.888529,0.00024846,7]
[358894961,1745532638577,-151.0,0.00024846,7]
[358894963,1745532638587,-151.0,0.00024846,7]
[358894965,1745532638596,-288.688982,0.00024846,7]
[358894967,1745532638606,-246.836621,0.00024846,7]
[358894969,1745532638616,-554.816163,0.00024846,7]
[358894971,1745532638627,-151.0,0.00024846,7]
[358894973,1745532638637,-554.816163,0.00024846,7]
[358894975,1745532638647,-151.0,0.00024846,7]
[358894977,1745532638657,-151.0,0.00024846,7]
[358894979,1745532638667,-151.0,0.00024856,7]
[358894981,1745532638676,-154.100858,0.00024856,7]
[358894983,1745532638686,-156.644564,0.0002487,7]
[358894985,1745532638696,-156.644564,0.0002487,7]
[358894987,1745532638706,-151.0,0.0002487,7]
[358894989,1745532638716,-151.0,0.0002487,7]
[358894991,1745532638726,-151.0,0.0002487,7]
[358894993,1745532638736,-716.909453,0.0002487,7]
[358894995,1745532638746,-716.909453,0.0002487,7]
[358894997,1745532638756,-159.900956,0.0002487,7]
[358894999,1745532638765,-159.900956,0.0002487,7]
[358895001,1745532638775,-151.0,0.0002487,7]
[358895003,1745532638785,-151.0,0.0002487,7]
[358895005,1745532638795,-151.0,0.0002487,7]
[358895007,1745532638805,-151.0,0.0002487,7]
[358895009,1745532638814,-151.0,0.0002487,7]
[358895011,1745532638824,-528.684048,0.0002487,2]
[358895013,1745532638834,-528.684048,0.0002487,2]
[358895015,1745532638844,-361.422959,0.0002487,7]
[358895017,1745532638853,-361.422959,0.0002487,7]
[358895019,1745532638863,-151.0,0.0002487,7]
[358895021,1745532638872,-397.708193,0.0002487,7]
[358895023,1745532638889,-179.530242,0.0002487,7]
[358895025,1745532638904,-179.530242,0.0002487,7]
[358895027,1745532638915,-151.0,0.0002487,7]
[358895029,1745532638924,-397.708193,0.0002487,7]
[358895031,1745532638934,-392.342569,0.0002487,7]
[358895033,1745532638944,-380.302379,0.0002487,7]
[358895035,1745532638953,-380.302379,0.0002487,7]
[358895037,1745532638966,-151.0,0.0002487,7]
[358895040,1745532638977,-392.342569,0.0002487,7]
[358895042,1745532638988,-151.0,0.0002487,7]
[358895044,1745532638998,-151.0,0.0002487,7]
[358895045,1745532639008,-238.765285,0.0002487,7]
[358895047,1745532639019,-960.64521687,0.0002487,7]
[358895050,1745532639034,-407.89415323,0.0002487,7]
[358895140,1745532639890,-188.66666666,0.00024799,2]
[358895142,1745532639901,-155.8169759,0.0002487,7]
[358895144,1745532639911,-30.43912707,0.0002487,7]
[358895146,1745532639949,-120.56087293,0.0002487,7]
[358895148,1745532639959,-151.0,0.0002487,7]
[358895151,1745532639972,-151.0,0.0002487,7]
[358895152,1745532639981,-151.0,0.0002487,7]
[358895155,1745532639992,-151.0,0.0002487,7]
[358895157,1745532640001,-151.0,0.0002487,7]
[358895159,1745532640013,-198.164087,0.0002487,7]
[358895160,1745532640022,-198.164087,0.0002487,7]
[358895162,1745532640032,-151.0,0.0002487,7]
[358895163,1745532640043,-281.406446,0.0002487,7]
[358895165,1745532640053,-151.0,0.0002487,7]
[358895167,1745532640062,-281.406446,0.0002487,7]
[358895169,1745532640072,-201.154027,0.0002487,7]
[358895171,1745532640083,-201.154027,0.0002487,7]
[358895173,1745532640092,-256.137207,0.0002487,7]
[358895175,1745532640102,-256.137207,0.0002487,7]
[358895177,1745532640113,-248.499628,0.0002487,7]
[358895180,1745532640128,-248.499628,0.0002487,7]
[358895182,1745532640137,-500.0,0.00024873,2]
[358895184,1745532640148,-500.0,0.00024873,2]
[358895186,1745532640158,-500.0,0.00024873,2]
[358895188,1745532640168,-500.0,0.00024873,2]
[358895189,1745532640178,-525.983902,0.00024873,7]
[358895190,1745532640188,-525.983902,0.00024873,7]
[358895191,1745532640198,-151.0,0.00024873,7]
[358895192,1745532640208,-151.0,0.00024873,7]
[358895193,1745532640220,-151.0,0.00024873,7]
[358895194,1745532640231,-151.0,0.00024873,7]
[358895195,1745532640241,-242.233519,0.00024873,7]
[358895196,1745532640252,-151.0,0.0002488,7]
[358895197,1745532640263,-151.0,0.0002488,7]
[358895198,1745532640272,-151.0,0.0002488,7]
[358895199,1745532640283,-151.0,0.0002488,7]
[358895200,1745532640293,-151.0,0.0002488,7]
[358895201,1745532640304,-226.888529,0.0002488,7]
[358895202,1745532640314,-226.888529,0.0002488,7]
[358895203,1745532640327,-151.0,0.0002488,7]
[358895204,1745532640337,-167.909743,0.0002488,7]
[358895205,1745532640346,-554.816163,0.0002488,7]
[358895206,1745532640359,-554.816163,0.0002488,7]
[358895207,1745532640369,-151.0,0.0002488,7]
[358895209,1745532640379,-151.0,0.0002488,7]
[358895212,1745532640390,-151.0,0.0002488,7]
[358895214,1745532640400,-288.336694,0.0002488,7]
[358895216,1745532640410,-288.336694,0.0002488,7]
[358895218,1745532640421,-156.644564,0.0002488,7]
[358895220,1745532640431,-151.0,0.0002488,7]
[358895221,1745532640441,-156.644564,0.0002488,7]
[358895223,1745532640452,-151.0,0.0002488,7]
[358895225,1745532640461,-151.0,0.0002488,7]
[358895228,1745532640472,-151.0,0.0002488,7]
[358895230,1745532640482,-151.0,0.0002488,7]
[358895232,1745532640493,-716.909453,0.0002488,7]
[358895234,1745532640503,-716.909453,0.0002488,7]
[358895236,1745532640513,-151.0,0.0002488,7]
[358895238,1745532640523,-159.900956,0.0002488,7]
[358895240,1745532640533,-159.900956,0.0002488,7]
[358895242,1745532640543,-910.349218,0.0002488,7]
[358895244,1745532640554,-151.0,0.0002488,7]
[358895246,1745532640563,-224.058304,0.0002488,7]
[358895248,1745532640578,-151.0,0.0002488,7]
[358895250,1745532640589,-224.058304,0.0002488,7]
[358895252,1745532640599,-249.013375,0.0002488,7]
[358895254,1745532640609,-249.013375,0.0002488,7]
[358895256,1745532640621,-151.0,0.0002488,7]
[358895258,1745532640632,-151.0,0.0002488,7]
[358895260,1745532640642,-151.0,0.0002488,7]
[358895262,1745532640652,-151.0,0.0002488,7]
[358895264,1745532640663,-151.0,0.0002488,7]
[358895266,1745532640673,-528.684048,0.0002488,2]
[358895268,1745532640683,-528.684048,0.0002488,2]
[358895270,1745532640693,-361.422959,0.0002488,7]
[358895271,1745532640704,-361.422959,0.0002488,7]
[358895272,1745532640714,-151.0,0.0002488,7]
[358895273,1745532640724,-397.708193,0.0002488,7]
[358895274,1745532640734,-179.530242,0.0002488,7]
[358895275,1745532640744,-179.530242,0.0002488,7]
[358895276,1745532640754,-151.0,0.0002488,7]
[358895277,1745532640765,-397.708193,0.0002488,7]
[358895278,1745532640775,-392.342569,0.0002488,7]
[358895279,1745532640785,-380.302379,0.0002488,7]
[358895280,1745532640795,-151.0,0.0002488,7]
[358895281,1745532640806,-380.302379,0.0002488,7]
[358895282,1745532640815,-276.82012443,0.0002488,7]
[358895283,1745532640829,-115.52244457,0.0002488,7]
[358895284,1745532640840,-151.0,0.0002488,7]
[358895285,1745532640849,-151.0,0.0002488,7]
[358895286,1745532640859,-1524.356346,0.0002488,7]
[358895287,1745532640869,-151.0,0.0002488,7]
[358895288,1745532640880,-151.0,0.0002488,7]
[358895289,1745532640890,-151.0,0.0002488,7]
[358895290,1745532640901,-184.975774,0.0002488,7]
[358895291,1745532640912,-151.0,0.0002488,7]
[358895292,1745532640922,-151.10145,0.0002488,7]
[358895293,1745532640932,-198.164087,0.0002488,7]
[358895294,1745532640941,-198.164087,0.0002488,7]
[358895295,1745532640951,-151.0,0.0002488,7]
[358895296,1745532640963,-281.406446,0.0002488,7]
[358895297,1745532640975,-151.0,0.0002488,7]
[358895298,1745532640985,-281.406446,0.0002488,7]
[358895299,1745532640994,-201.154027,0.0002488,7]
[358895300,1745532641009,-201.154027,0.0002488,7]
[358895301,1745532641019,-256.137207,0.0002488,7]
[358895302,1745532641029,-256.137207,0.0002488,7]
[358895303,1745532641040,-248.499628,0.0002488,7]
[358895304,1745532641050,-248.499628,0.0002488,7]
[358895305,1745532641060,-151.0,0.0002488,7]
[358895306,1745532641070,-41453.73110074,0.0002488,3]
[358895307,1745532641083,-340.52790666,0.0002488,3]
[358895308,1745532641100,-11053.8343929,0.0002488,3]
[358895309,1745532641109,-26424.0467001,0.0002489,3]
[358895310,1745532641120,-151.0,0.0002489,7]
[358895311,1745532641129,-151.0,0.0002489,7]
[358895312,1745532641139,-151.0,0.0002489,7]
[358895313,1745532641150,-151.0,0.0002489,7]
[358895315,1745532641160,-151.0,0.0002489,7]
[358895317,1745532641169,-151.0,0.0002489,7]
[358895319,1745532641180,-226.888529,0.0002489,7]
[358895321,1745532641190,-226.888529,0.0002489,7]
[358895323,1745532641199,-151.0,0.0002489,7]
[358895325,1745532641209,-1000.0,0.0002489,14]
[358895328,1745532641219,-554.816163,0.0002489,7]
[358895329,1745532641229,-1000.0,0.0002489,14]
[358895331,1745532641239,-1000.0,0.0002489,14]
[358895333,1745532641251,-1000.0,0.0002489,14]
[358895335,1745532641261,-1000.0,0.0002489,14]
[358895337,1745532641271,-1000.0,0.0002489,14]
[358895339,1745532641281,-1000.0,0.0002489,14]
[358895342,1745532641291,-1000.0,0.0002489,14]
[358895343,1745532641301,-1000.0,0.0002489,14]
[358895346,1745532641311,-1000.0,0.0002489,14]
[358895348,1745532641320,-151.0,0.0002489,7]
[358895350,1745532641330,-1000.0,0.0002489,14]
[358895352,1745532641341,-151.0,0.0002489,7]
[358895354,1745532641350,-554.816163,0.0002489,7]
[358895356,1745532641360,-1000.0,0.0002489,14]
[358895357,1745532641371,-1000.0,0.0002489,14]
[358895359,1745532641380,-1000.0,0.0002489,14]
[358895411,1745532641885,-1000.0,0.0002489,14]
[358895413,1745532641896,-1000.0,0.0002489,14]
[358895415,1745532641907,-1000.0,0.0002489,14]
[358895417,1745532641916,-1000.0,0.0002489,14]
[358895419,1745532641926,-816.763423,0.0002489,14]
[358895421,1745532641936,-151.0,0.0002489,7]
[358895423,1745532641945,-151.0,0.0002489,7]
[358895425,1745532641954,-296.87055,0.0002489,7]
[358895427,1745532641964,-525.983902,0.0002489,7]
[358895429,1745532641976,-525.983902,0.0002489,7]
[358895431,1745532641985,-151.0,0.0002489,7]
[358895433,1745532641995,-203.486427,0.0002489,7]
[358895435,1745532642004,-151.0,0.0002489,7]
[358895438,1745532642020,-151.0,0.0002489,7]
[358895440,1745532642030,-151.0,0.0002489,7]
[358895442,1745532642039,-151.0,0.0002489,7]
[358895444,1745532642050,-151.0,0.0002489,7]
[358895446,1745532642060,-151.0,0.0002489,7]
[358895448,1745532642070,-151.0,0.0002489,7]
[358895450,1745532642081,-151.0,0.0002489,7]
[358895452,1745532642091,-288.336694,0.0002489,7]
[358895454,1745532642100,-288.336694,0.0002489,7]
[358895456,1745532642110,-288.336694,0.0002489,7]
[358895458,1745532642119,-288.336694,0.0002489,7]
[358895460,1745532642128,-156.644564,0.0002489,7]
[358895462,1745532642138,-151.0,0.0002489,7]
[358895464,1745532642148,-151.0,0.0002489,7]
[358895466,1745532642158,-156.644564,0.0002489,7]
[358895468,1745532642167,-151.0,0.0002489,7]
[358895470,1745532642177,-151.0,0.0002489,7]
[358895472,1745532642186,-151.0,0.0002489,7]
[358895474,1745532642196,-151.0,0.0002489,7]
[358895476,1745532642207,-151.0,0.0002489,7]
[358895478,1745532642216,-716.909453,0.0002489,7]
[358895481,1745532642227,-716.909453,0.0002489,7]
[358895482,1745532642236,-151.0,0.0002489,7]
[358895485,1745532642246,-159.900956,0.0002489,7]
[358895487,1745532642256,-159.900956,0.0002489,7]
[358895489,1745532642265,-910.349218,0.0002489,7]
[358895491,1745532642275,-151.0,0.0002489,7]
[358895493,1745532642285,-224.058304,0.0002489,7]
[358895495,1745532642294,-151.0,0.0002489,7]
[358895497,1745532642304,-224.058304,0.0002489,7]
[358895499,1745532642313,-249.013375,0.0002489,7]
[358895501,1745532642323,-249.013375,0.0002489,7]
[358895503,1745532642332,-202.66989,0.0002489,7]
[358895505,1745532642342,-151.0,0.0002489,7]
[358895507,1745532642351,-151.0,0.0002489,7]
[358895509,1745532642361,-169.044865,0.0002489,7]
[358895511,1745532642371,-151.0,0.0002489,7]
[358895513,1745532642380,-151.0,0.0002489,7]
[358895515,1745532642389,-151.0,0.0002489,7]
[358895517,1745532642399,-206.207625,0.0002489,7]
[358895519,1745532642410,-528.684048,0.0002489,2]
[358895521,1745532642419,-528.684048,0.0002489,2]
[358895524,1745532642429,-528.684048,0.0002489,2]
[358895527,1745532642440,-528.684048,0.0002489,2]
[358895530,1745532642450,-361.422959,0.0002489,7]
[358895532,1745532642466,-361.422959,0.0002489,7]
[358895534,1745532642476,-361.422959,0.0002489,7]
[358895536,1745532642486,-361.422959,0.0002489,7]
[358895538,1745532642496,-151.0,0.0002489,7]
[358895540,1745532642505,-151.0,0.0002489,7]
[358895542,1745532642515,-397.708193,0.0002489,7]
[358895544,1745532642525,-397.708193,0.0002489,7]
[358895546,1745532642535,-179.530242,0.0002489,7]
[358895548,1745532642544,-179.530242,0.0002489,7]
[358895551,1745532642554,-179.530242,0.0002489,7]
[358895553,1745532642564,-179.530242,0.0002489,7]
[358895555,1745532642575,-151.0,0.0002489,7]
[358895557,1745532642586,-151.0,0.0002489,7]
[358895559,1745532642596,-397.708193,0.0002489,7]
[358895561,1745532642606,-397.708193,0.0002489,7]
[358895564,1745532642617,-380.302379,0.0002489,7]
[358895568,1745532642628,-392.342569,0.0002489,7]
[358895571,1745532642638,-380.302379,0.0002489,7]
[358895574,1745532642648,-392.342569,0.0002489,7]
[358895577,1745532642658,-151.0,0.0002489,7]
[358895605,1745532642878,-174.831259,0.0002489,7]
[358895607,1745532642889,-380.302379,0.0002489,7]
[358895609,1745532642899,-392.342569,0.0002489,7]
[358895611,1745532642910,-380.302379,0.0002489,7]
[358895613,1745532642920,-392.342569,0.0002489,7]
[358895615,1745532642929,-151.0,0.0002489,7]
[358895617,1745532642939,-151.0,0.0002489,7]
[358895619,1745532642950,-151.0,0.0002489,7]
[358895621,1745532642960,-151.0,0.0002489,7]
[358895622,1745532642973,-1524.356346,0.0002489,7]
[358895624,1745532642983,-1524.356346,0.0002489,7]
[358895626,1745532642993,-151.0,0.0002489,7]
[358895628,1745532643002,-151.0,0.0002489,7]
[358895631,1745532643013,-151.0,0.0002489,7]
[358895634,1745532643023,-151.0,0.0002489,7]
[358895636,1745532643033,-151.0,0.0002489,7]
[358895637,1745532643045,-151.0,0.0002489,7]
[358895638,1745532643054,-151.0,0.0002489,7]
[358895639,1745532643064,-151.0,0.0002489,7]
[358895640,1745532643074,-52848.0934003,0.0002489,3]
[358895641,1745532643084,-198.164087,0.0002489,7]
[358895642,1745532643094,-198.164087,0.0002489,7]
[358895643,1745532643103,-198.164087,0.0002489,7]
[358895645,1745532643123,-198.164087,0.0002489,7]
[358895647,1745532643136,-151.0,0.0002489,7]
[358895649,1745532643147,-187.133543,0.0002489,7]
[358895651,1745532643159,-281.406446,0.0002489,7]
[358895653,1745532643168,-281.406446,0.0002489,7]
[358895655,1745532643179,-151.0,0.0002489,7]
[358895657,1745532643189,-158.800393,0.0002489,7]
[358895659,1745532643199,-281.406446,0.0002489,7]
[358895661,1745532643209,-281.406446,0.0002489,7]
[358895663,1745532643219,-201.154027,0.0002489,7]
[358895665,1745532643229,-201.154027,0.0002489,7]
[358895668,1745532643239,-201.154027,0.0002489,7]
[358895670,1745532643249,-201.154027,0.0002489,7]
[358895671,1745532643259,-256.137207,0.0002489,7]
[358895674,1745532643270,-256.137207,0.0002489,7]
[358895675,1745532643279,-256.137207,0.0002489,7]
[358895678,1745532643290,-256.137207,0.0002489,7]
[358895680,1745532643301,-248.499628,0.0002489,7]
[358895682,1745532643311,-248.499628,0.0002489,7]
[358895684,1745532643322,-248.499628,0.0002489,7]
[358895686,1745532643332,-248.499628,0.0002489,7]
[358895688,1745532643343,-151.0,0.0002489,7]
[358895690,1745532643353,-151.0,0.0002489,7]
[358895692,1745532643363,-151.0,0.0002489,7]
[358895694,1745532643374,-151.0,0.000249,7]
[358895696,1745532643384,-151.0,0.000249,7]
[358895698,1745532643394,-151.0,0.000249,7]
[358895700,1745532643404,-203.40333873,0.000249,7]
[358895702,1745532643415,-226.888529,0.000249,7]
[358895704,1745532643425,-226.888529,0.000249,7]
[358895707,1745532643435,-151.0,0.000249,7]
[358895709,1745532643445,-525.983902,0.000249,7]
[358895711,1745532643456,-525.983902,0.000249,7]
[358895713,1745532643466,-151.0,0.000249,7]
[358895715,1745532643477,-151.0,0.000249,7]
[358895717,1745532643487,-151.0,0.000249,7]
[358895719,1745532643498,-156.644564,0.000249,7]
[358895721,1745532643508,-156.644564,0.000249,7]
[358895723,1745532643518,-151.0,0.000249,7]
[358895725,1745532643529,-151.0,0.000249,7]
[358895728,1745532643545,-151.0,0.000249,7]
[358895730,1745532643555,-716.909453,0.000249,7]
[358895732,1745532643566,-716.909453,0.000249,7]
[358895734,1745532643577,-159.900956,0.000249,7]
[358895737,1745532643588,-159.900956,0.000249,7]
[358895740,1745532643598,-910.349218,0.000249,7]
[358895743,1745532643610,-910.349218,0.000249,7]
[358895746,1745532643620,-151.0,0.000249,7]
[358895749,1745532643630,-224.058304,0.000249,7]
[358895752,1745532643640,-151.0,0.000249,7]
[358895755,1745532643650,-224.058304,0.000249,7]
[358895758,1745532643660,-249.013375,0.000249,7]
[358895761,1745532643670,-249.013375,0.000249,7]
[358895764,1745532643680,-151.0,0.000249,7]
[358895766,1745532643690,-151.0,0.000249,7]
[358895768,1745532643700,-528.684048,0.000249,2]